fUSD/lending_fUSD_20240712
["ID","MTS","AMOUNT","RATE_DAILY","PERIOD"]
[331783915,1720762250100,-186.54,0.00013784,2]
[331783916,1720762250110,-662.06,0.00013784,2]
[331783917,1720762250120,-154.89104,0.0001379,2]
[331783918,1720762250131,-458.07946,0.0001379,2]
[331783919,1720762250140,-760.55599393,0.00013792,2]
[331783920,1720762250153,-300.24794141,0.00013792,2]
[331783921,1720762250162,-154.89104,0.0001383,2]
[331783922,1720762250172,-500.0,0.00013834,2]
[331783923,1720762250181,-151.07468292,0.00013834,2]
[331783924,1720762250211,-348.92531708,0.00013834,2]
[331783925,1720762250220,-500.0,0.00013834,2]
[331783926,1720762250230,-500.0,0.00013834,2]
[331783927,1720762250239,-636.2,0.00013834,2]
[331783928,1720762250249,-763.65,0.00013834,2]
[331783929,1720762250259,-563.97,0.00013834,2]
[331783930,1720762250268,-500.0,0.00013834,2]
[331783931,1720762250278,-910.81,0.00013834,2]
[331783932,1720762250287,-1620.13,0.00013834,2]
[331783933,1720762250296,-524.4,0.00013834,2]
[331783934,1720762250307,-1086.0,0.00013834,2]
[331783935,1720762250316,-500.0,0.00013834,2]
[331783936,1720762250327,-1140.52,0.00013834,2]
[331783937,1720762250337,-500.0,0.00013834,2]
[331783938,1720762250347,-758.6,0.00013834,2]
[331783939,1720762250357,-429.6766949,0.00013834,2]
[331783940,1720762250367,-780.36,0.00013834,2]
[331783941,1720762250381,-500.44,0.00013834,2]
[331783942,1720762250391,-870.9,0.00013834,2]
[331783943,1720762250401,-500.0,0.00013834,2]
[331783944,1720762250411,-500.0,0.00013834,2]
[331783945,1720762250421,-500.0,0.00013834,2]
[331783946,1720762250430,-500.0,0.00013834,2]
[331783947,1720762250440,-500.0,0.00013834,2]
[331783948,1720762250451,-500.0,0.00013834,2]
[331783949,1720762250461,-3679.66,0.00013834,2]
[331783950,1720762250470,-500.0,0.00013834,2]
[331783951,1720762250480,-500.0,0.00013834,2]
[331783952,1720762250490,-621.83,0.00013834,2]
[331783953,1720762250500,-500.0,0.00013834,2]
[331783954,1720762250509,-500.0,0.00013834,2]
[331783955,1720762250519,-500.0,0.00013834,2]
[331783956,1720762250528,-500.0,0.00013834,2]
[331783957,1720762250538,-153.66,0.00013834,2]
[331783958,1720762250550,-500.0,0.00013834,2]
[331783959,1720762250560,-500.0,0.00013834,2]
[331783960,1720762250571,-626.95,0.00013834,2]
[331783961,1720762250581,-500.0,0.00013834,2]
[331783962,1720762250591,-611.60953227,0.00013835,2]
[331783963,1720762250600,-500.0,0.00013835,2]
[331783964,1720762250610,-500.0,0.00013835,2]
[331783965,1720762250620,-316.73013018,0.00013835,2]
[331783966,1720762250629,-500.0,0.00013835,2]
[331783967,1720762250639,-500.0,0.00013835,2]
[331783968,1720762250649,-500.0,0.00013835,2]
[331783969,1720762250659,-500.0,0.00013835,2]
[331783970,1720762250668,-500.0,0.00013835,2]
[331783971,1720762250678,-500.0,0.00013835,2]
[331783972,1720762250687,-482.24085716,0.00013835,2]
[331783973,1720762250697,-500.0,0.00013835,2]
[331783974,1720762250707,-915.14,0.00013835,2]
[331783975,1720762250716,-500.0,0.00013835,2]
[331783976,1720762250726,-500.0,0.00013835,2]
[331783977,1720762250736,-535.98,0.00013835,2]
[331783978,1720762250745,-1546.67,0.00013835,2]
[331783979,1720762250755,-450.71918069,0.00013835,2]
[331783980,1720762250765,-556.4,0.00013835,2]
[331783981,1720762250774,-500.0,0.00013835,2]
[331783982,1720762250784,-907.24,0.00013835,2]
[331783983,1720762250793,-421.67038428,0.00013835,2]
[331783984,1720762250803,-500.0,0.00013835,2]
[331783985,1720762250812,-500.0,0.00013835,2]
[331783986,1720762250822,-500.0,0.00013835,2]
[331783987,1720762250832,-789.07,0.00013835,2]
[331783988,1720762250841,-500.0,0.00013835,2]
[331783989,1720762250853,-500.0,0.00013835,2]
[331783990,1720762250864,-500.0,0.00013835,2]
[331783991,1720762250873,-776.86,0.00013835,2]
[331783992,1720762250883,-713.08,0.00013835,2]
[331783993,1720762250896,-500.0,0.00013835,2]
[331783994,1720762250905,-500.0,0.00013835,2]
[331783995,1720762250915,-500.0,0.00013835,2]
[331783996,1720762250924,-6829.54,0.00013835,2]
[331783997,1720762250934,-500.0,0.00013835,2]
[331783998,1720762250944,-1803.56,0.00013835,2]
[331783999,1720762250953,-608.3,0.00013835,2]
[331784000,1720762250963,-802.24,0.00013835,2]
[331784001,1720762250972,-500.0,0.00013835,2]
[331784002,1720762250981,-517.56,0.00013835,2]
[331784003,1720762250991,-203.79,0.00013835,2]
[331784004,1720762251003,-500.0,0.00013835,2]
[331784005,1720762251013,-7582.8,0.00013835,2]
[331784006,1720762251024,-2762.6,0.00013835,2]
[331784007,1720762251035,-1462.89,0.00013835,2]
[331784008,1720762251046,-698.99,0.00013835,2]
[331784009,1720762251056,-500.0,0.00013835,2]
[331784010,1720762251067,-817.08,0.00013835,2]
[331784011,1720762251079,-500.0,0.00013835,2]
[331784012,1720762251089,-2578.13,0.00013835,2]
[331784013,1720762251099,-624.08,0.00013835,2]
[331784014,1720762251108,-500.0,0.00013835,2]
[331784015,1720762251118,-2620.59,0.00013835,2]
[331784016,1720762251128,-848.55,0.00013835,2]
[331784017,1720762251138,-500.0,0.00013835,2]
[331784018,1720762251148,-2161.72,0.00013835,2]
[331784019,1720762251157,-500.0,0.00013835,2]
[331784020,1720762251168,-1203.6,0.00013835,2]
[331784021,1720762251179,-500.0,0.00013835,2]
[331784022,1720762251189,-500.0,0.00013835,2]
[331784023,1720762251200,-500.0,0.00013835,2]
[331784024,1720762251211,-500.0,0.00013835,2]
[331784025,1720762251221,-500.0,0.00013835,2]
[331784026,1720762251234,-3100.72,0.00013835,2]
[331784027,1720762251244,-737.78,0.00013835,2]
[331784028,1720762251254,-500.0,0.00013835,2]
[331784029,1720762251264,-876.17,0.00013835,2]
[331784030,1720762251274,-500.0,0.00013835,2]
[331784031,1720762251283,-500.0,0.00013835,2]
[331784032,1720762251293,-500.0,0.00013835,2]
[331784033,1720762251302,-842.58,0.00013835,2]
[331784034,1720762251312,-500.0,0.00013835,2]
[331784035,1720762251322,-595.77,0.00013836,2]
[331784036,1720762251331,-512.13309096,0.00013836,2]
[331784037,1720762251341,-672.88,0.00013836,2]
[331784038,1720762251351,-665.62,0.00013836,2]
[331784039,1720762251360,-500.0,0.00013836,2]
[331784040,1720762251370,-947.66,0.00013836,2]
[331784041,1720762251383,-1448.68,0.00013836,2]
[331784042,1720762251393,-1735.0,0.00013836,2]
[331784043,1720762251403,-500.0,0.00013836,2]
[331784044,1720762251412,-500.0,0.00013836,2]
[331784045,1720762251423,-835.2,0.00013836,2]
[331784046,1720762251433,-500.0,0.00013836,2]
[331784047,1720762251443,-500.0,0.00013836,2]
[331784048,1720762251454,-673.97,0.00013836,2]
[331784049,1720762251464,-500.0,0.00013836,2]
[331784050,1720762251474,-573.88,0.00013836,2]
[331784051,1720762251484,-505.3,0.00013836,2]
[331784052,1720762251493,-634.01,0.00013836,2]
[331784053,1720762251503,-500.0,0.00013836,2]
[331784054,1720762251512,-500.0,0.00013836,2]
[331784055,1720762251521,-1397.84,0.00013836,2]
[331784056,1720762251531,-500.0,0.00013836,2]
[331784057,1720762251540,-500.0,0.00013836,2]
[331784058,1720762251550,-500.0,0.00013836,2]
[331784059,1720762251559,-500.0,0.00013836,2]
[331784060,1720762251570,-500.0,0.00013836,2]
[331784061,1720762251580,-863.19,0.00013836,2]
[331784062,1720762251589,-996.56,0.00013836,2]
[331784063,1720762251601,-500.0,0.00013836,2]
[331784064,1720762251611,-500.0,0.00013836,2]
[331784065,1720762251620,-500.0,0.00013836,2]
[331784066,1720762251629,-1532.95,0.00013836,2]
[331784067,1720762251639,-500.0,0.00013836,2]
[331784068,1720762251650,-1216.27,0.00013836,2]
[331784069,1720762251661,-557.83,0.00013836,2]
[331784070,1720762251671,-1710.44,0.00013836,2]
[331784071,1720762251682,-551.39,0.00013836,2]
[331784072,1720762251692,-606.62,0.00013836,2]
[331784073,1720762251702,-500.0,0.00013836,2]
[331784074,1720762251712,-500.0,0.00013836,2]
[331784075,1720762251721,-500.0,0.00013836,2]
[331784076,1720762251731,-500.0,0.00013836,2]
[331784077,1720762251741,-500.0,0.00013836,2]
[331784078,1720762251751,-500.0,0.00013836,2]
[331784079,1720762251761,-500.0,0.00013836,2]
[331784080,1720762251770,-500.0,0.00013836,2]
[331784081,1720762251780,-150.0,0.00013836,2]
[331784082,1720762251790,-500.0,0.00013836,2]
[331784083,1720762251800,-500.0,0.00013836,2]
[331784084,1720762251809,-648.98,0.00013836,2]
[331784085,1720762251819,-500.0,0.00013836,2]
[331784086,1720762251829,-500.0,0.00013836,2]
[331784087,1720762251840,-500.0,0.00013836,2]
[331784088,1720762251850,-1061.51,0.00013836,2]
[331784089,1720762251860,-615.07,0.00013836,2]
[331784090,1720762251870,-500.0,0.00013836,2]
[331784091,1720762251880,-972.93,0.00013836,2]
[331784092,1720762251890,-833.9,0.00013836,2]
[331784093,1720762251900,-500.0,0.00013836,2]
[331784094,1720762251910,-604.26,0.00013836,2]
[331784095,1720762251919,-571.08,0.00013836,2]
[331784096,1720762251929,-500.0,0.00013836,2]
[331784097,1720762251939,-500.0,0.00013836,2]
[331784098,1720762251951,-665.21,0.00013836,2]
[331784099,1720762251962,-1099.25,0.00013836,2]
[331784100,1720762251972,-500.0,0.00013836,2]
[331784101,1720762251982,-906.95,0.00013836,2]
[331784102,1720762251992,-767.01,0.00013836,2]
[331784103,1720762252249,-1598.47,0.00013836,2]
[331784104,1720762252259,-967.72,0.00013836,2]
[331784105,1720762252269,-274.71,0.00013836,2]
[331784106,1720762252278,-500.0,0.00013836,2]
[331784107,1720762252287,-1095.96,0.00013836,2]
[331784108,1720762252296,-500.0,0.00013836,2]
[331784109,1720762252305,-556.36,0.00013836,2]
[331784110,1720762252315,-500.0,0.00013836,2]
[331784111,1720762252324,-1074.34,0.00013836,2]
[331784112,1720762252333,-1768.05,0.00013836,2]
[331784113,1720762252343,-1258.19,0.00013836,2]
[331784114,1720762252352,-1452.81,0.00013836,2]
[331784115,1720762252362,-500.0,0.00013836,2]
[331784116,1720762252372,-500.0,0.00013836,2]
[331784117,1720762252386,-500.0,0.00013836,2]
[331784118,1720762252397,-666.77,0.00013836,2]
[331784119,1720762252407,-926.65,0.00013836,2]
[331784120,1720762252419,-870.37,0.00013836,2]
[331784121,1720762252430,-1443.72,0.00013836,2]
[331784122,1720762252441,-860.39,0.00013836,2]
[331784123,1720762252455,-728.75,0.00013836,2]
[331784124,1720762252466,-500.0,0.00013836,2]
[331784125,1720762252476,-990.26,0.00013836,2]
[331784126,1720762252487,-500.0,0.00013836,2]
[331784127,1720762252496,-500.0,0.00013836,2]
[331784128,1720762252505,-887.16,0.00013836,2]
[331784129,1720762252515,-500.0,0.00013836,2]
[331784130,1720762252524,-500.0,0.00013836,2]
[331784131,1720762252533,-500.0,0.00013836,2]
[331784132,1720762252543,-645.8,0.00013836,2]
[331784133,1720762252553,-500.0,0.00013836,2]
[331784134,1720762252563,-500.0,0.00013836,2]
[331784135,1720762252573,-500.0,0.00013836,2]
[331784136,1720762252583,-500.0,0.00013836,2]
[331784137,1720762252594,-500.0,0.00013836,2]
[331784138,1720762252604,-500.0,0.00013836,2]
[331784139,1720762252614,-500.0,0.00013836,2]
[331784140,1720762252626,-500.0,0.00013836,2]
[331784141,1720762252636,-500.0,0.00013836,2]
[331784142,1720762252646,-609.16,0.00013836,2]
[331784143,1720762252655,-1130.35,0.00013836,2]
[331784144,1720762252665,-500.0,0.00013836,2]
[331784145,1720762252674,-500.0,0.00013836,2]
[331784146,1720762252684,-500.0,0.00013836,2]
[331784147,1720762252694,-500.0,0.00013836,2]
[331784148,1720762252703,-500.0,0.00013836,2]
[331784149,1720762252713,-894.04,0.00013836,2]
[331784150,1720762252722,-1866.05,0.00013836,2]
[331784151,1720762252732,-1653.07,0.00013836,2]
[331784152,1720762252741,-560.44,0.00013836,2]
[331784153,1720762252750,-935.66,0.00013836,2]
[331784154,1720762252760,-1000.0,0.00013836,2]
[331784155,1720762252769,-500.0,0.00013836,2]
[331784156,1720762252778,-500.0,0.00013836,2]
[331784157,1720762252788,-688.64,0.00013836,2]
[331784158,1720762252798,-500.0,0.00013836,2]
[331784159,1720762252808,-500.0,0.00013836,2]
[331784160,1720762252819,-1219.74,0.00013836,2]
[331784161,1720762252834,-603.33,0.00013836,2]
[331784162,1720762252843,-500.0,0.00013836,2]
[331784163,1720762252853,-976.12,0.00013836,2]
[331784164,1720762252864,-795.52,0.00013836,2]
[331784165,1720762252875,-500.0,0.00013836,2]
[331784166,1720762252886,-500.0,0.00013836,2]
[331784167,1720762252896,-500.0,0.00013836,2]
[331784168,1720762252905,-500.0,0.00013836,2]
[331784169,1720762252915,-1037.17,0.00013836,2]
[331784170,1720762252924,-1202.18,0.00013836,2]
[331784171,1720762252935,-500.0,0.00013836,2]
[331784172,1720762252945,-500.0,0.00013837,2]
[331784173,1720762252955,-500.0,0.00013837,2]
[331784174,1720762252966,-272.93892303,0.00013837,2]
[331784175,1720762252976,-541.99,0.00013837,2]
[331784176,1720762252986,-500.0,0.00013837,2]
[331784177,1720762252996,-301.5,0.00013837,2]
[331784178,1720762253006,-500.0,0.00013837,2]
[331784179,1720762253016,-278.83,0.00013837,2]
[331784180,1720762253026,-736.24,0.00013837,2]
[331784181,1720762253036,-159.30147778,0.00013837,2]
[331784182,1720762253523,-500.0,0.00013779,2]
[331784183,1720762253534,-500.0,0.00013834,2]
[331784184,1720762253544,-916.96,0.00013836,2]
[331784185,1720762253553,-340.69852222,0.00013837,2]
[331784186,1720762253563,-868.77,0.00013837,2]
[331784187,1720762253574,-637.07,0.00013837,2]
[331784188,1720762253583,-106.71110122,0.00013837,2]
[331784189,1720762253595,-439.16889878,0.00013837,2]
[331784190,1720762253604,-500.0,0.00013837,2]
[331784191,1720762253614,-500.0,0.00013837,2]
[331784192,1720762253623,-18.26004619,0.00013837,2]
[331784193,1720762253635,-456.92761125,0.00013837,2]
[331784194,1720762253648,-24.81234256,0.00013837,2]
[331784195,1720762253660,-500.0,0.00013837,2]
[331784196,1720762253670,-500.0,0.00013837,2]
[331784197,1720762253681,-793.96,0.00013837,2]
[331784198,1720762253692,-500.0,0.00013837,2]
[331784199,1720762253703,-543.76,0.00013837,2]
[331784200,1720762253713,-451.14791502,0.00013837,2]
[331784201,1720762253835,-500.0,0.00013779,2]
[331784202,1720762253846,-944.36,0.0001378,2]
[331784203,1720762253857,-48.85208498,0.00013837,2]
[331784204,1720762253868,-596.96,0.00013837,2]
[331784205,1720762253878,-500.0,0.00013837,2]
[331784206,1720762253889,-500.0,0.00013837,2]
[331784207,1720762253899,-500.0,0.00013837,2]
[331784208,1720762253911,-952.43,0.00013837,2]
[331784209,1720762253922,-500.0,0.00013837,2]
[331784210,1720762253933,-500.0,0.00013837,2]
[331784211,1720762253944,-633.58,0.00013837,2]
[331784212,1720762253954,-500.0,0.00013837,2]
[331784213,1720762253965,-177.42,0.00013837,2]
[331784214,1720762253976,-478.32654296,0.00013837,2]
[331784215,1720762253987,-500.0,0.00013837,2]
[331784216,1720762253997,-500.0,0.00013837,2]
[331784217,1720762254006,-500.0,0.00013837,2]
[331784218,1720762254016,-500.0,0.00013837,2]
[331784219,1720762254027,-910.64,0.00013837,2]
[331784220,1720762254039,-500.0,0.00013837,2]
[331784221,1720762254049,-567.87,0.00013837,2]
[331784222,1720762254059,-500.0,0.00013837,2]
[331784223,1720762254070,-500.0,0.00013837,2]
[331784224,1720762254080,-500.0,0.00013837,2]
[331784225,1720762254090,-500.0,0.00013837,2]
[331784226,1720762254101,-500.0,0.00013837,2]
[331784227,1720762254112,-500.0,0.00013837,2]
[331784228,1720762254122,-500.0,0.00013837,2]
[331784229,1720762254134,-500.0,0.00013837,2]
[331784230,1720762254146,-500.0,0.00013837,2]
[331784231,1720762254156,-500.0,0.00013837,2]
[331784232,1720762254166,-500.0,0.00013837,2]
[331784233,1720762254177,-500.0,0.00013837,2]
[331784234,1720762254186,-500.0,0.00013837,2]
[331784235,1720762254196,-917.97,0.00013837,2]
[331784236,1720762254206,-598.71,0.00013837,2]
[331784237,1720762254216,-500.0,0.00013837,2]
[331784238,1720762254225,-1308.43,0.00013837,2]
[331784239,1720762254234,-500.0,0.00013837,2]
[331784240,1720762254244,-500.0,0.00013837,2]
[331784241,1720762254253,-500.0,0.00013837,2]
[331784242,1720762254263,-500.0,0.00013837,2]
[331784243,1720762254273,-500.0,0.00013837,2]
[331784244,1720762254283,-651.59,0.00013837,2]
[331784245,1720762254295,-500.0,0.00013837,2]
[331784246,1720762254305,-1636.19,0.00013837,2]
[331784247,1720762254314,-1589.68,0.00013837,2]
[331784248,1720762254325,-500.0,0.00013837,2]
[331784249,1720762254334,-500.0,0.00013837,2]
[331784250,1720762254343,-500.0,0.00013837,2]
[331784251,1720762254353,-500.0,0.00013837,2]
[331784252,1720762254362,-741.18,0.00013837,2]
[331784253,1720762254371,-500.0,0.00013837,2]
[331784254,1720762254384,-500.0,0.00013837,2]
[331784255,1720762254394,-500.0,0.00013837,2]
[331784256,1720762254403,-500.0,0.00013837,2]
[331784257,1720762254414,-500.0,0.00013837,2]
[331784258,1720762254423,-500.0,0.00013837,2]
[331784259,1720762254433,-454.04,0.00013837,2]
[331784260,1720762254442,-857.28,0.00013837,2]
[331784261,1720762254455,-500.0,0.00013837,2]
[331784262,1720762254464,-738.69,0.00013837,2]
[331784263,1720762254474,-500.0,0.00013837,2]
[331784264,1720762254484,-500.0,0.00013837,2]
[331784265,1720762254493,-2022.33,0.00013837,2]
[331784266,1720762254502,-1186.06,0.00013837,2]
[331784267,1720762254512,-562.35,0.00013837,2]
[331784268,1720762254522,-500.0,0.00013837,2]
[331784269,1720762254531,-500.0,0.00013837,2]
[331784270,1720762254541,-500.0,0.00013837,2]
[331784271,1720762254551,-500.0,0.00013837,2]
[331784272,1720762254561,-500.0,0.00013837,2]
[331784273,1720762254570,-500.0,0.00013837,2]
[331784274,1720762254646,-500.0,0.00013837,2]
[331784275,1720762254656,-500.0,0.00013837,2]
[331784276,1720762254666,-500.0,0.00013837,2]
[331784277,1720762254675,-1027.58,0.00013837,2]
[331784278,1720762254685,-500.0,0.00013837,2]
[331784279,1720762254694,-500.0,0.00013837,2]
[331784280,1720762254704,-679.53,0.00013837,2]
[331784281,1720762254714,-500.0,0.00013837,2]
[331784282,1720762254723,-815.52,0.00013837,2]
[331784283,1720762254733,-500.0,0.00013837,2]
[331784284,1720762254742,-500.0,0.00013837,2]
[331784285,1720762254752,-963.78,0.00013837,2]
[331784286,1720762254761,-500.0,0.00013837,2]
[331784287,1720762254771,-500.0,0.00013837,2]
[331784288,1720762254783,-500.0,0.00013837,2]
[331784289,1720762254793,-584.73,0.00013837,2]
[331784290,1720762254803,-500.0,0.00013837,2]
[331784291,1720762254812,-500.0,0.00013837,2]
[331784292,1720762254822,-500.0,0.00013837,2]
[331784293,1720762254833,-500.0,0.00013837,2]
[331784294,1720762254842,-310.59518516,0.00013837,2]
[331784295,1720762254851,-1102.71,0.00013837,2]
[331784296,1720762254860,-969.22,0.00013837,2]
[331784297,1720762254870,-452.83999959,0.00013837,2]
[331784298,1720762254879,-500.0,0.00013837,2]
[331784299,1720762254889,-500.0,0.00013837,2]
[331784300,1720762254899,-500.0,0.00013837,2]
[331784301,1720762254908,-500.0,0.00013837,2]
[331784302,1720762254917,-500.0,0.00013837,2]
[331784303,1720762254927,-500.0,0.00013837,2]
[331784304,1720762254936,-1149.94,0.00013837,2]
[331784305,1720762254946,-1023.69,0.00013837,2]
[331784306,1720762254955,-554.44221511,0.00013837,2]
[331784307,1720762254965,-500.0,0.00013837,2]
[331784308,1720762254975,-1333.0,0.00013837,2]
[331784309,1720762254984,-500.0,0.00013837,2]
[331784310,1720762254994,-500.0,0.00013837,2]
[331784311,1720762255003,-815.76,0.00013837,2]
[331784312,1720762255013,-500.0,0.00013837,2]
[331784313,1720762255023,-500.0,0.00013837,2]
[331784314,1720762255032,-500.0,0.00013837,2]
[331784315,1720762255042,-596.0,0.00013837,2]
[331784316,1720762255052,-500.0,0.00013837,2]
[331784317,1720762255062,-930.82,0.00013837,2]
[331784318,1720762255071,-500.0,0.00013837,2]
[331784319,1720762255081,-500.0,0.00013837,2]
[331784320,1720762255091,-500.0,0.00013837,2]
[331784321,1720762255100,-500.0,0.00013837,2]
[331784322,1720762255113,-1328.27,0.00013837,2]
[331784323,1720762255122,-500.0,0.00013837,2]
[331784324,1720762255132,-500.0,0.00013837,2]
[331784325,1720762255142,-500.0,0.00013837,2]
[331784326,1720762255151,-500.0,0.00013837,2]
[331784327,1720762255161,-500.0,0.00013837,2]
[331784328,1720762255171,-500.0,0.00013837,2]
[331784329,1720762255180,-698.68,0.00013837,2]
[331784330,1720762255190,-500.0,0.00013837,2]
[331784331,1720762255200,-942.27,0.00013837,2]
[331784332,1720762255210,-500.0,0.00013837,2]
[331784333,1720762255220,-500.0,0.00013837,2]
[331784334,1720762255229,-935.31,0.00013837,2]
[331784335,1720762255239,-500.0,0.00013837,2]
[331784336,1720762255248,-665.61,0.00013837,2]
[331784337,1720762255258,-590.5,0.00013837,2]
[331784338,1720762255267,-811.42,0.00013837,2]
[331784339,1720762255277,-644.68,0.00013837,2]
[331784340,1720762255287,-500.0,0.00013837,2]
[331784341,1720762255296,-500.0,0.00013837,2]
[331784342,1720762255305,-1808.07,0.00013837,2]
[331784343,1720762255315,-1442.49,0.00013837,2]
[331784344,1720762255325,-500.0,0.00013837,2]
[331784345,1720762255334,-728.79,0.00013837,2]
[331784346,1720762255343,-500.0,0.00013837,2]
[331784347,1720762255353,-500.0,0.00013837,2]
[331784348,1720762255362,-500.0,0.00013837,2]
[331784349,1720762255372,-500.0,0.00013837,2]
[331784350,1720762255384,-500.0,0.00013837,2]
[331784351,1720762255393,-500.0,0.00013837,2]
[331784352,1720762255403,-500.0,0.00013837,2]
[331784353,1720762255412,-500.0,0.00013837,2]
[331784354,1720762255423,-606.39,0.00013837,2]
[331784355,1720762255433,-500.0,0.00013837,2]
[331784356,1720762255442,-500.0,0.00013837,2]
[331784357,1720762255454,-500.0,0.00013837,2]
[331784358,1720762255464,-500.0,0.00013837,2]
[331784359,1720762255474,-353.3297374,0.00013837,2]
[331784360,1720762255490,-146.6702626,0.00013837,2]
[331784361,1720762255500,-165.5197374,0.00013837,2]
[331784362,1720762255534,-334.4802626,0.00013837,2]
[331784363,1720762255544,-306.50617573,0.00013837,2]
[331784364,1720762255567,-500.0,0.00013779,2]
[331784365,1720762255577,-253.65382427,0.00013837,2]
[331784366,1720762255586,-500.0,0.00013837,2]
[331784367,1720762255596,-532.09,0.00013837,2]
[331784368,1720762255605,-545.89,0.00013837,2]
[331784369,1720762255615,-500.0,0.00013837,2]
[331784370,1720762255624,-973.47,0.00013837,2]
[331784371,1720762255633,-1087.95,0.00013837,2]
[331784372,1720762255642,-235.05725098,0.00013837,2]
[331784373,1720762255654,-264.94274902,0.00013837,2]
[331784374,1720762255664,-607.28,0.00013837,2]
[331784375,1720762255673,-500.0,0.00013837,2]
[331784376,1720762255683,-500.0,0.00013837,2]
[331784377,1720762255692,-938.56,0.00013837,2]
[331784378,1720762255703,-500.0,0.00013837,2]
[331784379,1720762255712,-500.0,0.00013837,2]
[331784380,1720762255721,-500.0,0.00013837,2]
[331784381,1720762255731,-500.0,0.00013837,2]
[331784382,1720762255740,-824.23,0.00013837,2]
[331784383,1720762255749,-500.0,0.00013837,2]
[331784384,1720762255759,-319.25,0.00013837,2]
[331784385,1720762255768,-1084.74,0.00013837,2]
[331784386,1720762255778,-500.0,0.00013837,2]
[331784387,1720762255787,-500.0,0.00013837,2]
[331784388,1720762255797,-899.92,0.00013837,2]
[331784389,1720762255806,-500.0,0.00013837,2]
[331784390,1720762255815,-500.0,0.00013837,2]
[331784391,1720762255825,-500.0,0.00013837,2]
[331784392,1720762255836,-500.0,0.00013837,2]
[331784393,1720762255845,-830.6,0.00013837,2]
[331784394,1720762255856,-500.0,0.00013837,2]
[331784395,1720762255866,-500.0,0.00013837,2]
[331784396,1720762255875,-500.0,0.00013837,2]
[331784397,1720762255886,-500.0,0.00013837,2]
[331784398,1720762255895,-500.0,0.00013837,2]
[331784399,1720762255905,-500.0,0.00013837,2]
[331784400,1720762255915,-1059.25,0.00013837,2]
[331784401,1720762255924,-500.0,0.00013837,2]
[331784402,1720762255933,-500.0,0.00013837,2]
[331784403,1720762255944,-500.0,0.00013837,2]
[331784404,1720762255953,-500.0,0.00013837,2]
[331784405,1720762255964,-500.0,0.00013837,2]
[331784406,1720762255975,-787.16,0.00013837,2]
[331784407,1720762255984,-773.44,0.00013837,2]
[331784408,1720762255994,-500.0,0.00013837,2]
[331784409,1720762256003,-500.0,0.00013837,2]
[331784410,1720762256013,-581.19,0.00013837,2]
[331784411,1720762256022,-500.0,0.00013837,2]
[331784412,1720762256032,-521.19,0.00013837,2]
[331784413,1720762256041,-542.37,0.00013837,2]
[331784414,1720762256051,-500.0,0.00013837,2]